Workbook

Sheet Sheet1
A1: 尚书府三、四期铝合金复合卷帘外遮阳工程量清单
A2: 序号 | B2: 楼栋 | C2: 方位 | D2: 窗户型号 | E2: 窗户规格（mm） | H2: 数量 | I2: 面积(㎡) | J2: 面积合计(㎡)
A3: 1 | B3: 16# | C3: 南立面 | D3: TC1815 | E3: 1800 | F3: * | G3: 1500 | H3: =6*9 -> 54 | I3: =E3*G3*H3/1000000 -> 145.80 | J3: =I3+I4 -> 206.55 | K3: 200.00 | L3: =K3*J3 -> 41310.00 | M3: 4303.1 | N3: =J3/M3 -> 0.04800027887
D4: TC1515 | E4: 1500 | F4: * | G4: 1500 | H4: =3*9 -> 27 | I4: 60.75 | Q4: 1#、2# 3#、10# | R4: 18,521.77
A5: 2 | B5: 18# | C5: 南立面 | D5: TC1816 | E5: 1800 | F5: * | G5: 1600 | H5: =4*18 -> 72 | I5: 207.36 | J5: 380.16 | K5: 200.00 | L5: =K5*#REF! ->  | M5: 5998.5 | N5: =#REF!/M5 -> 
D6: TC1516 | E6: 1500 | F6: * | G6: 1600 | H6: 72 | I6: 172.80 | Q6: 11#、12# 13#、22# | R6: 20,285.12
A7: 3 | B7: 19# | C7: 南立面 | D7: TC1816 | E7: 1800 | F7: * | G7: 1600 | H7: 72 | I7: 207.36 | J7: 380.16 | K7: 200.00 | L7: =K7*J7 -> 76032.00 | M7: 5497.84 | N7: =J7/M7 -> 0.06914715597
D8: TC1516 | E8: 1500 | F8: * | G8: 1600 | H8: 72 | I8: 172.80 | Q8: 15#21# | R8: =6095.72+6572.5 -> 12,668.22
A9: 4 | B9: 20# | C9: 南立面 | D9: TC1815 | E9: 1800 | F9: * | G9: 1500 | H9: =6*9 -> 54 | I9: 145.80 | J9: =I9+I10 -> 206.55 | K9: 200.00 | L9: =K9*J9 -> 41310.00 | M9: 6361.34 | N9: =J9/M9 -> 0.03246957402
D10: TC1515 | E10: 1500 | F10: * | G10: 1500 | H10: =3*9 -> 27 | I10: 60.75 | Q10: 5#9# | R10: =6361.34+6095.72 -> 12,457.06
A11: 5 | B11: 23# | C11: 南立面 | D11: TC1815 | E11: 1800 | F11: * | G11: 1500 | H11: =6*7 -> 42 | I11: 113.40 | J11: 160.65 | Q11: 6#8# | R11: =12983.3*2 -> 25,966.60
D12: TC1515 | E12: 1500 | F12: * | G12: 1500 | H12: =3*7 -> 21 | I12: 47.25
A13: 6 | B13: 25# | C13: 南立面 | D13: TC1816 | E13: 1800 | F13: * | G13: 1600 | H13: =5+6*8 -> 53 | I13: 152.64 | J13: 215.04
D14: TC1516 | E14: 1500 | F14: * | G14: 1600 | H14: =2+3*8 -> 26 | I14: 62.40 | Q14: 16# | R14: =6095.72 -> 6,095.72
A15: 7 | B15: 26# | C15: 南立面 | D15: TC1815 | E15: 1800 | F15: * | G15: 1500 | H15: =6*9 -> 54 | I15: 145.80 | J15: =I15+I16 -> 206.55 | K15: 200.00 | L15: =K15*J15 -> 41310.00 | M15: 6095.72 | N15: =J15/M15 -> 0.03388443039
D16: TC1515 | E16: 1500 | F16: * | G16: 1500 | H16: =3*9 -> 27 | I16: 60.75 | Q16: 18# | R16: =13565.86 -> 13,565.86
A17: 8 | B17: 28# | C17: 南立面 | D17: TC1816 | E17: 1800 | F17: * | G17: 1600 | H17: =4*18 -> 72 | I17: 207.36 | J17: 380.16 | K17: 200.00 | L17: 76032.00 | M17: 3690 | N17: 0.1030243902
D18: TC1516 | E18: 1500 | F18: * | G18: 1600 | H18: 72 | I18: 172.80 | Q18: 19#、28# | R18: =13565.86+13565.86 -> 27,131.72
A19: 9 | B19: 29# | C19: 南立面 | D19: TC1816 | E19: 1800 | F19: * | G19: 1600 | H19: 72 | I19: =E19*G19*H19/1000000 -> 207.36 | J19: 380.16 | K19: 200.00 | L19: 76032.00 | M19: 5748.35 | N19: 0.06613376012
D20: TC1516 | E20: 1500 | F20: * | G20: 1600 | H20: 72 | I20: 172.80 | Q20: 20#、26# | R20: =6095.72*2 -> 12,191.44
A21: 10 | B21: 30# | C21: 南立面 | D21: TC1815 | E21: 1800 | F21: * | G21: 1500 | H21: =6*9 -> 54 | I21: 145.80 | J21: =I21+I22 -> 206.55 | K21: 200.00 | L21: =K21*J21 -> 41310.00 | M21: 4573.23 | N21: =J21/M21 -> 0.04516501466
D22: TC1515 | E22: 1500 | F22: * | G22: 1500 | H22: =3*9 -> 27 | I22: 60.75 | Q22: 29# | R22: 13,565.86
A23: 11 | B23: 31# | C23: 南立面 | D23: TC1815 | E23: 1800 | F23: * | G23: 1500 | H23: =4*9 -> 36 | I23: 97.20 | J23: 137.70 | K23: 200.00 | L23: 27540.00 | M23: 5202.5 | N23: 0.02646804421
D24: TC1515 | E24: 1500 | F24: * | G24: 1500 | H24: =2*9 -> 18 | I24: 40.50 | Q24: 30#、36# | R24: =6095.72*2 -> 12,191.44
A25: 12 | B25: 32# | C25: 南立面 | D25: TC1815 | E25: 1800 | F25: * | G25: 1500 | H25: =6*7 -> 42 | I25: 113.40 | J25: 160.65 | K25: 200.00 | L25: 32130.00 | M25: 6095.723 | N25: 0.026354544
D26: TC1515 | E26: 1500 | F26: * | G26: 1500 | H26: =3*7 -> 21 | I26: 47.25 | Q26: 38# | R26: 12,515.58
A27: 13 | B27: 33# | C27: 南立面 | D27: TC1815 | E27: 1800 | F27: * | G27: 1500 | H27: =4*7 -> 28 | I27: 75.60 | J27: =I27+I28 -> 107.10 | K27: 200.00 | L27: =K27*J27 -> 21420.00 | M27: 6572.5 | N27: =J27/M27 -> 0.01629516927
D28: TC1515 | E28: 1500 | F28: * | G28: 1500 | H28: =2*7 -> 14 | I28: 31.50 | Q28: 39# | R28: 19,348.60
A29: 14 | B29: 35# | C29: 南立面 | D29: TC1815 | E29: 1800 | F29: * | G29: 1500 | H29: =6*9 -> 54 | I29: 145.80 | J29: 206.55
D30: TC1515 | E30: 1500 | F30: * | G30: 1500 | H30: =3*9 -> 27 | I30: 60.75
A31: 15 | B31: 36# | C31: 南立面 | D31: TC1815 | E31: 1800 | F31: * | G31: 1500 | H31: =6*9 -> 54 | I31: 145.80 | J31: 206.55
D32: TC1515 | E32: 1500 | F32: * | G32: 1500 | H32: =3*9 -> 27 | I32: 60.75
A33: 16 | B33: 38# | C33: 南立面 | D33: TC1516 | E33: 1500 | F33: * | G33: 1600 | H33: =4*18 -> 72 | I33: 172.80 | J33: =I33+I34 -> 368.64
D34: TC1816 | E34: 1800 | F34: * | G34: 1600 | H34: =2*2+4*16 -> 68 | I34: 195.84
A35: 17 | B35: 39# | C35: 南立面 | D35: TC1516 | E35: 1500 | F35: * | G35: 1600 | H35: =6*18 -> 108 | I35: =E35*G35*H35/1000000 -> 259.20 | J35: =SUM(I35:I36) -> 570.24
D36: TC1816 | E36: 1800 | F36: * | G36: 1600 | H36: =6*18 -> 108 | I36: =E36*G36*H36/1000000 -> 311.04
A37: 18 | B37: 40# | C37: 南立面 | D37: TC1516 | E37: 1500 | F37: * | G37: 1600 | H37: =4*18 -> 72 | I37: =E37*G37*H37/1000000 -> 172.80 | J37: =SUM(I37:I38) -> 380.16
D38: TC1816 | E38: 1800 | F38: * | G38: 1600 | H38: =4*18 -> 72 | I38: =E38*G38*H38/1000000 -> 207.36
A39: 19 | B39: 41# | C39: 南立面 | D39: TC1815 | E39: 1800 | F39: * | G39: 1500 | H39: =6*9 -> 54 | I39: =E39*G39*H39/1000000 -> 145.80 | J39: =I39+I40 -> 206.55
D40: TC1515 | E40: 1500 | F40: * | G40: 1500 | H40: =3*9 -> 27 | I40: =E40*G40*H40/1000000 -> 60.75
A41: 20 | B41: 42# | C41: 南立面 | D41: TC1815 | E41: 1800 | F41: * | G41: 1500 | H41: =6*7 -> 42 | I41: =E41*G41*H41/1000000 -> 113.40 | J41: =I41+I42 -> 160.65 | K41: 200.00 | L41: =K41*J41 -> 32130.00 | M41: 5211.5 | N41: =J41/M41 -> 0.03082605776
D42: TC1515 | E42: 1500 | F42: * | G42: 1500 | H42: =3*7 -> 21 | I42: =E42*G42*H42/1000000 -> 47.25 | Q42: 40# | R42: =12983.34 -> 12,983.34
A43: 合计 | H43: =SUM(H3:H42) -> 2007 | I43: =SUM(J3:J42) -> 5227.32 | L43: =SUM(L3:L42) -> 
